bitfinex-derivatives/quotes_BNBF0:USTF0_20250331
["timestamp","ask_amount","ask_price","bid_price","bid_amount"]
[1743401715133,1.508,601.03,599.72,0.28678608]
[1743401715334,1.508,601.03,599.74,0.33347784]
[1743401715536,1.508,601.03,599.75,0.28678608]
[1743401715731,1.508,601.03,599.77,0.33346116]
[1743401716029,1.508,601.03,599.78,0.28678608]
[1743401716229,1.508,601.03,599.8,0.33344448]
[1743401716437,1.508,601.03,599.81,0.28678608]
[1743401717036,1.508,601.03,599.82,0.28678608]
[1743401717241,0.28983576,601.02,599.84,0.33342224]
[1743401717637,0.28983576,601.02,599.85,0.28680577]
[1743401717836,0.28983576,601.02,599.87,0.33340557]
[1743401718042,0.28983576,601.02,599.88,0.28680577]
[1743401718238,0.28983576,601.02,599.9,0.33338889]
[1743401718437,0.28983576,601.02,599.91,0.28680577]
[1743401718642,0.28983576,601.02,599.92,0.33337778]
[1743401718841,0.28983576,601.02,599.93,0.28680708]
[1743401719043,1.508,601.03,599.94,0.33336667]
[1743401719245,1.508,601.03,599.95,0.28680708]
[1743401719440,0.28982128,601.01,599.96,0.33335555]
[1743401719646,0.28982128,601.01,599.97,0.28680708]
[1743401719945,1.081,601.0,599.98,0.33334444]
[1743401720144,1.081,601.0,599.99,0.28680708]
[1743401720345,1.081,601.0,600.0,0.33333333]
[1743401720540,1.081,601.0,600.01,0.28680708]
[1743401720747,1.081,601.0,600.02,0.33332222]
[1743401720946,1.081,601.0,600.03,0.28680708]
[1743401721147,1.081,601.0,600.04,0.33331111]
[1743401721447,1.081,601.0,600.05,0.28680708]
[1743401722045,1.081,601.0,600.04,0.33331111]
[1743401722346,1.081,601.0,600.05,0.28674234]
[1743401722646,1.081,601.0,600.07,0.33329444]
[1743401722844,1.081,601.0,600.08,0.28674234]
[1743401723149,1.081,601.0,600.1,0.33327778]
[1743401723346,1.081,601.0,600.11,0.28674234]
[1743401723546,1.081,601.0,600.12,0.33326667]
[1743401723747,1.081,601.0,600.13,0.28674234]
[1743401724049,1.081,601.0,600.14,0.33325557]
[1743401724249,1.081,601.0,600.15,0.28674234]
[1743401724846,1.081,601.0,600.16,0.33324446]
[1743401725043,1.081,601.0,600.17,0.28674234]
[1743401725247,1.081,601.0,600.18,0.33323336]
[1743401725448,1.081,601.0,600.19,0.28674234]
[1743401725647,1.081,601.0,600.2,0.33322225]
[1743401726148,1.081,601.0,600.21,0.28674234]
[1743401726347,1.081,601.0,600.22,0.33321115]
[1743401726544,1.081,601.0,600.23,0.28674234]
[1743401726744,1.081,601.0,600.24,0.33320005]
[1743401726948,1.081,601.0,600.25,0.28674234]
[1743401727148,1.081,601.0,600.26,0.33318895]
[1743401727345,1.081,601.0,600.27,0.28674234]
[1743401727545,1.081,601.0,600.28,0.33317785]
[1743401727748,1.081,601.0,600.29,0.28674234]
[1743401728044,1.081,601.0,600.3,0.33316674]
[1743401728246,1.081,601.0,600.31,0.28674234]
[1743401728752,1.081,601.0,600.3,0.33316674]
[1743401729947,1.081,601.0,600.31,0.28673782]
[1743401732355,1.083,600.99,600.31,0.28673782]
[1743401735153,1.083,600.99,600.3,0.33316674]
[1743401735358,1.506,600.98,600.3,0.33316674]
[1743401739261,1.493,600.97,600.3,0.33316674]
[1743401740857,1.123,600.96,600.3,0.33316674]
[1743401742362,1.123,600.96,600.31,0.28665832]
[1743401742763,1.123,600.96,600.32,0.33315565]
[1743401743058,1.123,600.96,600.33,0.28665832]
[1743401743262,1.123,600.96,600.34,0.33314455]
[1743401743463,1.123,600.96,600.35,0.28665832]
[1743401743655,1.123,600.96,600.36,0.61978382]
[1743401743858,1.123,600.96,600.37,0.28665037]
[1743401744459,1.123,600.96,600.38,0.33312235]
[1743401744657,1.123,600.96,600.39,0.28665037]
[1743401745363,1.123,600.96,600.4,0.33311125]
[1743401745664,1.123,600.96,600.41,0.28665037]
[1743401745965,1.123,600.96,600.42,0.33310016]
[1743401746159,1.123,600.96,600.43,0.28665037]
[1743401746961,1.123,600.96,600.44,0.33308906]
[1743401747163,1.123,600.96,600.45,0.28665037]
[1743401747359,1.123,600.96,600.46,0.33307797]
[1743401747558,1.123,600.96,600.47,0.28665037]
[1743401747761,1.123,600.96,600.48,0.33306687]
[1743401747962,1.123,600.96,600.49,0.28665037]
[1743401748260,1.123,600.96,600.5,0.33305578]
[1743401748564,1.123,600.96,600.51,0.28665037]
[1743401748761,1.123,600.96,600.52,0.33304469]
[1743401748962,1.123,600.96,600.53,0.28665037]
[1743401749162,1.123,600.96,600.54,0.3330336]
[1743401749459,1.123,600.96,600.55,0.28656895]
[1743401749664,1.123,600.96,600.56,0.33302251]
[1743401760172,1.123,600.96,600.57,0.28660648]
[1743401760365,1.123,600.96,600.57,0.61962344]
[1743401760564,1.123,600.96,600.58,0.28660648]
[1743401760970,1.123,600.96,600.57,0.33301696]
[1743401761373,1.123,600.96,600.58,0.28654534]
[1743401765871,1.123,600.96,600.59,0.33300587]
[1743401766072,1.123,600.96,600.6,0.28654534]
[1743401767078,1.123,600.96,600.61,0.33299478]
[1743401767280,1.123,600.96,600.62,0.28654534]
[1743401767478,1.123,600.96,600.63,0.3329837]
[1743401767678,1.123,600.96,600.64,0.28654534]
[1743401768272,1.123,600.96,600.63,0.3329837]
[1743401768476,1.123,600.96,600.64,0.28647339]
[1743401769180,1.42,601.01,600.64,0.28647339]
[1743401769975,1.42,601.01,600.63,0.3329837]
[1743401770174,1.42,601.01,600.64,0.28642546]
[1743401771078,1.42,601.01,600.65,0.33297261]
[1743401771276,1.42,601.01,600.66,0.28642546]
[1743401771581,1.42,601.01,600.67,0.33296152]
[1743401771881,1.42,601.01,600.68,0.28642546]
[1743401772083,1.42,601.01,600.69,0.33295044]
[1743401772278,1.42,601.01,600.7,0.28642546]
[1743401772676,1.42,601.01,600.71,0.33293935]
[1743401772877,1.42,601.01,600.72,0.28642546]
[1743401773081,1.42,601.01,600.73,0.33292827]
[1743401773281,1.42,601.01,600.74,0.28642546]
[1743401773483,1.42,601.01,600.73,0.33292827]
[1743401773682,1.42,601.01,600.74,0.28641892]
[1743401776379,1.42,601.01,600.75,0.33291718]
[1743401776583,1.42,601.01,600.76,0.28641892]
[1743401776878,1.42,601.01,600.77,0.3329061]
[1743401777083,1.42,601.01,600.78,0.28641892]
[1743401777282,1.42,601.01,600.79,0.61930781]
[1743401777481,1.42,601.01,600.8,0.61930227]
[1743401777681,1.42,601.01,600.81,0.28641279]
[1743401777878,1.42,601.01,600.82,0.33287839]
[1743401778079,1.42,601.01,600.83,0.28641279]
[1743401778278,1.42,601.01,600.84,0.33286731]
[1743401778482,1.42,601.01,600.85,0.28641279]
[1743401778680,1.42,601.01,600.86,0.33285623]
[1743401778885,1.42,601.01,600.87,0.28641279]
[1743401779083,1.42,601.01,600.88,0.33284516]
[1743401779383,1.42,601.01,600.89,0.28641279]
[1743401780087,1.42,601.01,600.9,0.33283408]
[1743401780285,1.42,601.01,600.91,0.28641279]
[1743401780480,1.42,601.01,600.92,0.332823]
[1743401780687,1.42,601.01,600.93,0.28641279]
[1743401781286,1.42,601.01,600.94,0.33281192]
[1743401781487,1.42,601.01,600.95,0.28641279]
[1743401781683,1.42,601.01,600.95,0.61921917]
[1743401781888,1.42,601.01,600.96,0.28641279]
[1743401785493,1.452,601.03,600.96,0.28641279]
[1743401786292,1.452,601.03,600.97,0.28641718]
[1743401786596,1.452,601.03,600.98,0.28641718]
[1743401786791,1.452,601.03,600.95,0.33280638]
[1743401786792,1.452,601.03,600.96,0.28641718]
[1743401786993,1.452,601.03,600.97,0.28641718]
[1743401787194,1.452,601.03,600.96,0.28641718]
[1743401787492,1.452,601.03,600.95,0.33280638]
[1743401787493,1.452,601.03,600.97,0.28641718]
[1743401787794,1.452,601.03,600.98,0.28641718]
[1743401787994,1.452,601.03,600.96,0.28641718]
[1743401788193,1.452,601.03,600.97,0.28641718]
[1743401788493,1.452,601.03,600.98,0.28641718]
[1743401788688,1.452,601.03,600.96,0.28641718]
[1743401788890,1.452,601.03,600.97,0.28641718]
[1743401789095,1.452,601.03,600.96,0.28641718]
[1743401789294,1.452,601.03,600.97,0.28641718]
[1743401789493,1.452,601.03,600.95,0.33280638]
[1743401789494,1.452,601.03,600.96,0.28641718]
[1743401791298,1.452,601.03,600.95,0.33280638]
[1743401791597,1.452,601.03,600.96,0.28642044]
[1743401795695,1.452,601.03,600.97,0.33279531]
[1743401795896,1.452,601.03,600.98,0.28642044]
[1743401796096,1.452,601.03,600.99,0.33278423]
[1743401799903,1.452,601.03,600.72,0.2895777]
[1743401800204,1.452,601.03,600.73,0.28654325]
[1743401800499,1.452,601.03,600.74,0.28654325]
[1743401800703,1.452,601.03,600.72,0.28966809]
[1743401801004,1.452,601.03,600.73,0.28654401]
[1743401801398,1.452,601.03,600.73,0.33292827]
[1743401803705,1.452,601.03,600.74,0.28651103]
[1743401804109,1.452,601.03,600.75,0.33291718]
[1743401807906,2.435,601.2,600.75,0.33291718]
[1743401808109,2.435,601.2,600.76,0.28650549]
[1743401808308,2.435,601.2,600.77,0.3329061]
[1743401808509,2.435,601.2,600.78,0.28650549]
[1743401808802,2.435,601.2,600.79,0.33289502]
[1743401809503,2.435,601.2,600.8,0.28646991]
[1743401809701,2.435,601.2,600.81,0.33288394]
[1743401809906,2.435,601.2,600.82,0.28644433]
[1743401810106,2.435,601.2,600.83,0.33287285]
[1743401810304,2.435,601.2,600.84,0.28644433]
[1743401810503,2.435,601.2,600.83,0.33287285]
[1743401810805,2.435,601.2,600.85,0.33286177]
[1743401811010,2.435,601.2,600.86,0.28646892]
[1743401812315,2.435,601.2,600.85,0.33286177]
[1743401824627,1.104,601.2,600.85,0.33286177]
[1743401832524,1.104,601.2,599.83,2.52044129]
[1743401832728,1.104,601.2,599.85,0.33341668]
[1743401832929,1.104,601.2,600.54,0.28961385]
[1743401833132,1.104,601.2,599.85,0.33341668]
[1743401833328,1.104,601.2,599.86,0.28664267]
[1743401833629,1.104,601.2,599.87,0.28664267]
[1743401833832,1.104,601.2,599.88,0.28664267]
[1743401834134,1.104,601.2,599.9,0.33338889]
[1743401834333,1.104,601.2,599.91,0.28664267]
[1743401834533,1.104,601.2,599.93,0.33337222]
[1743401834726,1.104,601.2,599.94,0.28664267]
[1743401834931,1.104,601.2,599.96,0.33335555]
[1743401835131,1.104,601.2,599.97,0.28664267]
[1743401835431,2.338,601.2,599.99,0.33333888]
[1743401835632,2.338,601.2,600.0,0.28664267]
[1743401835932,2.338,601.2,600.02,0.33332222]
[1743401836126,2.338,601.2,600.03,0.28664267]
[1743401836330,2.338,601.2,600.05,0.33330555]
[1743401836529,2.338,601.2,600.06,0.28664267]
[1743401836727,2.338,601.2,600.08,0.33328889]
[1743401836931,2.338,601.2,600.09,0.28664267]
[1743401837331,2.338,601.2,600.11,0.33327223]
[1743401837532,2.338,601.2,600.12,0.28664267]
[1743401837732,2.338,601.2,600.14,0.33325557]
[1743401837933,2.338,601.2,600.15,0.28663]
[1743401838134,2.338,601.2,600.17,0.33323891]
[1743401838433,2.338,601.2,600.18,0.28663]
[1743401838634,2.338,601.2,600.2,0.33322225]
[1743401838834,2.338,601.2,600.21,0.28663]
[1743401839431,2.338,601.2,600.23,0.3332056]
[1743401839630,2.338,601.2,600.24,0.28663]
[1743401839835,2.338,601.2,600.26,0.33318895]
[1743401840135,2.338,601.2,600.27,0.28663]
[1743401840331,2.338,601.2,600.29,0.3331723]
[1743401840533,2.338,601.2,600.3,0.28663]
[1743401840935,2.338,601.2,600.32,0.33315565]
[1743401841130,2.338,601.2,600.33,0.28663]
[1743401841330,2.338,601.2,600.35,0.333139]
[1743401841534,2.338,601.2,600.36,0.28663]
[1743401841735,2.338,601.2,600.37,0.3331279]
[1743401841934,2.338,601.2,600.38,0.28663]
[1743401842335,2.338,601.2,600.39,0.3331168]
[1743401842535,2.338,601.2,600.4,0.28663751]
[1743401843938,2.338,601.2,600.41,0.33310571]
[1743401844336,2.338,601.2,600.42,0.28663944]
[1743401844538,2.338,601.2,600.43,0.33309461]
[1743401844835,2.338,601.2,600.44,0.28663944]
[1743401845235,2.338,601.2,600.45,0.33308352]
[1743401847141,2.338,601.2,600.46,0.28664637]
[1743401848235,2.338,601.2,600.46,0.61972434]
[1743401848541,2.338,601.2,600.46,0.33307797]
[1743401849435,2.338,601.2,600.47,0.28665004]
[1743401849840,2.338,601.2,600.46,0.33307797]
[1743401851043,2.338,601.2,600.47,0.28661018]
[1743401851338,2.338,601.2,600.48,0.33306687]
[1743401855343,2.338,601.2,600.49,0.28659464]
[1743401855842,2.338,601.2,600.5,0.33305578]
[1743401856044,2.338,601.2,600.51,0.28659464]
[1743401856343,3.258,601.2,600.52,0.33304469]
[1743401856549,3.258,601.2,600.53,0.28659464]
[1743401857143,3.258,601.2,600.54,0.3330336]
[1743401857343,3.258,601.2,600.55,0.28659464]
[1743401857738,3.258,601.2,600.56,0.33302251]
[1743401858144,3.258,601.2,600.57,0.28659464]
[1743401858342,3.258,601.2,600.58,0.33301142]
[1743401858544,3.258,601.2,600.59,0.28659464]
[1743401858745,3.258,601.2,600.6,0.33300033]
[1743401858946,4.496,601.2,600.61,0.28659464]
[1743401859247,4.496,601.2,600.62,0.33298924]
[1743401859546,4.496,601.2,600.63,0.28659464]
[1743401859943,4.496,601.2,600.64,0.33297815]
[1743401860140,4.496,601.2,600.65,0.28659464]
[1743401860342,4.496,601.2,600.66,0.61948494]
[1743401860540,4.496,601.2,600.67,0.6194794]
[1743401860746,4.496,601.2,600.68,0.61947386]
[1743401861043,4.496,601.2,600.69,0.61946832]
[1743401861248,4.496,601.2,600.7,0.61946277]
[1743401861449,4.496,601.2,600.71,0.61945723]
[1743401861747,4.496,601.2,600.72,0.28651788]
[1743401861949,4.496,601.2,600.71,0.33293935]
[1743401862142,4.496,601.2,600.72,0.28651806]
[1743401863447,4.496,601.2,600.71,0.33293935]
[1743401864450,4.496,601.2,600.72,0.28652471]
[1743401865751,4.496,601.2,600.71,0.33293935]
[1743401866049,4.496,601.2,600.72,0.2865193]
[1743401869052,4.496,601.2,600.73,0.33292827]
[1743401869452,4.496,601.2,600.74,0.28651553]
[1743401869651,4.496,601.2,600.75,0.33291718]
[1743401869854,4.496,601.2,600.76,0.28651553]
[1743401870253,2.158,601.2,600.76,0.28651553]
[1743401870450,2.158,601.2,600.76,0.61942717]
[1743401870651,2.158,601.2,600.77,0.28651553]
[1743401871354,2.158,601.2,600.77,0.61942163]
[1743401871547,2.158,601.2,600.78,0.61941609]
[1743401871748,2.158,601.2,600.79,0.61941055]
[1743401871948,2.158,601.2,600.8,0.61940501]
[1743401872255,1.238,601.2,600.8,0.33288948]
[1743401873449,1.238,601.2,600.81,0.2865061]
[1743401876453,1.238,601.2,600.8,0.33288948]
[1743401876659,1.238,601.2,600.81,0.28650641]
[1743401882369,1.238,601.2,600.8,0.33288948]
[1743401892572,1.238,601.2,600.81,0.28650734]
[1743401895572,1.238,601.2,600.8,0.33288948]
[1743401895774,1.238,601.2,600.81,0.28649875]
[1743401901984,1.482,601.25,600.81,0.28649875]
[1743401903382,1.482,601.25,600.8,0.33288948]
[1743401904985,2.893,601.25,600.8,0.33288948]
[1743401908189,2.893,601.25,599.77,2.52044129]
[1743401908385,2.893,601.25,599.94,0.33336667]
[1743401908586,2.893,601.25,599.95,0.28663506]
[1743401908781,2.893,601.25,599.96,0.28663506]
[1743401909088,2.893,601.25,599.97,0.28663506]
[1743401909387,2.893,601.25,599.98,0.28663506]
[1743401909582,2.893,601.25,600.0,0.33333333]
[1743401909788,2.893,601.25,600.01,0.28663506]
[1743401909980,2.893,601.25,600.03,0.33331666]
[1743401910182,2.893,601.25,600.04,0.2866402]
[1743401910386,2.893,601.25,600.06,0.3333]
[1743401910688,2.893,601.25,600.07,0.2866402]
[1743401910891,2.893,601.25,600.09,0.33328334]
[1743401911190,2.893,601.25,600.1,0.2866402]
[1743401911389,2.893,601.25,600.12,0.33326667]
[1743401911586,2.893,601.25,600.13,0.2866402]
[1743401911791,2.893,601.25,600.15,0.33325002]
[1743401911994,2.893,601.25,600.16,0.28664156]
[1743401912389,2.893,601.25,600.18,0.33323336]
[1743401912594,2.893,601.25,600.19,0.28664156]
[1743401912891,2.893,601.25,600.21,0.3332167]
[1743401913090,2.893,601.25,600.22,0.28664156]
[1743401913286,2.893,601.25,600.24,0.33320005]
[1743401913591,2.893,601.25,600.25,0.28664156]
[1743401913795,2.893,601.25,600.27,0.3331834]
[1743401913988,2.893,601.25,600.28,0.28664156]
[1743401914189,4.00477629,601.25,600.29,0.3331723]
[1743401914391,4.00477629,601.25,600.3,0.28664156]
[1743401915094,4.00477629,601.25,600.31,0.3331612]
[1743401915491,4.00477629,601.25,600.32,0.28666859]
[1743401915690,4.00477629,601.25,600.33,0.3331501]
[1743401915890,4.00477629,601.25,600.34,0.28666859]
[1743401916092,4.00477629,601.25,600.35,0.333139]
[1743401916291,4.00477629,601.25,600.36,0.28666859]
[1743401917191,4.00477629,601.25,600.37,0.3331279]
[1743401917388,0.914,601.24,600.37,0.3331279]
[1743401918193,0.914,601.24,600.38,0.2866614]
[1743401918393,0.914,601.24,600.39,0.3331168]
[1743401918995,0.914,601.24,600.4,0.28664504]
[1743401919191,0.914,601.24,600.41,0.33310571]
[1743401920095,0.914,601.24,600.42,0.28663301]
[1743401920291,0.914,601.24,600.43,0.33309461]
[1743401920491,0.914,601.24,600.44,0.28663301]
[1743401920690,0.914,601.24,600.45,0.33308352]
[1743401921090,1.117,601.23,600.45,0.33308352]
[1743401923396,0.941,601.22,600.45,0.33308352]
[1743401926900,1.185,601.21,600.45,0.33308352]
[1743401927095,1.185,601.21,600.46,0.28663147]
[1743401927295,1.185,601.21,600.47,0.33307242]
[1743401927491,1.185,601.21,600.48,0.28663147]
[1743401927691,1.185,601.21,600.49,0.33306133]
[1743401930894,0.917,601.2,600.49,0.33306133]
[1743401931596,0.917,601.2,600.5,0.28656074]
[1743401931896,0.917,601.2,600.51,0.33305024]
[1743401934192,0.917,601.2,600.52,0.28655974]
[1743401934391,0.917,601.2,600.53,0.33303914]
[1743401934591,0.917,601.2,600.54,0.28655974]
[1743401934799,0.917,601.2,600.55,0.33302805]
[1743401934997,0.917,601.2,600.56,0.28655974]
[1743401935694,0.917,601.2,600.57,0.28648051]
[1743401935899,0.917,601.2,600.58,0.33301142]
[1743401936199,0.917,601.2,600.59,0.28648051]
[1743401937101,0.917,601.2,600.6,0.33300033]
[1743401937400,0.917,601.2,600.61,0.28648051]
[1743401937594,0.917,601.2,600.62,0.28648051]
[1743401937797,0.917,601.2,600.61,0.28648051]
[1743401937998,0.917,601.2,600.62,0.28648051]
[1743401938193,0.917,601.2,600.6,0.33300033]
[1743401938194,0.917,601.2,600.61,0.28648051]
[1743401938396,0.917,601.2,600.63,0.28648051]
[1743401938597,0.917,601.2,600.64,0.28648051]
[1743401938799,0.917,601.2,600.65,0.28648051]
[1743401938997,0.917,601.2,600.66,0.28648051]
[1743401939194,0.917,601.2,600.67,0.61944203]
[1743401939394,0.917,601.2,600.68,0.61943649]
[1743401939600,0.917,601.2,600.69,0.61943095]
[1743401939793,0.917,601.2,600.7,0.6194254]
[1743401939994,0.917,601.2,600.71,0.61941986]
[1743401940200,0.917,601.2,600.72,0.61941432]
[1743401940396,0.917,601.2,600.73,0.61940878]
[1743401940600,0.917,601.2,600.74,0.61940323]
[1743401940799,0.917,601.2,600.75,0.61939769]
[1743401941001,0.917,601.2,600.76,0.61939215]
[1743401941204,0.917,601.2,600.77,0.61938661]
[1743401941405,0.917,601.2,600.78,0.28648051]
[1743401941801,0.917,601.2,600.79,0.33289502]
[1743401942000,0.917,601.2,600.8,0.28648051]
[1743401942206,0.917,601.2,600.81,0.33288394]
[1743401942406,0.917,601.2,600.82,0.28648051]
[1743401945406,0.917,601.2,600.83,0.33287285]
[1743401945605,0.917,601.2,600.84,0.28648051]
[1743401946406,0.917,601.2,600.85,0.33286177]
[1743401946608,0.917,601.2,600.86,0.28648051]
[1743401946801,0.917,601.2,600.87,0.33285069]
[1743401947006,1.411,601.25,600.88,0.28648051]
[1743401947205,1.411,601.25,600.89,0.33283962]
[1743401947403,1.411,601.25,600.9,0.28648051]
[1743401947906,1.411,601.25,600.91,0.33282854]
[1743401948106,1.411,601.25,600.92,0.28648051]
[1743401948304,1.411,601.25,600.93,0.33281746]
[1743401948504,1.411,601.25,600.94,0.28648051]
[1743401948705,1.411,601.25,600.95,0.33280638]
[1743401948905,1.411,601.25,600.96,0.28648051]
[1743401949208,1.411,601.25,600.97,0.33279531]
[1743401949608,1.411,601.25,600.98,0.28625512]
[1743401949810,1.411,601.25,600.99,0.33278423]
[1743401950110,1.002,601.27,601.0,0.28625512]
[1743401951405,1.002,601.27,601.01,0.33277316]
[1743401951612,1.002,601.27,601.02,0.28625512]
[1743401951919,1.002,601.27,601.03,0.33276209]
[1743401952207,1.002,601.27,601.04,0.28625512]
[1743401952407,1.002,601.27,601.05,0.33275101]
[1743401952614,1.002,601.27,601.06,0.28625512]
[1743401952811,1.002,601.27,601.07,0.33273994]
[1743401953012,1.002,601.27,601.08,0.28625512]
[1743401953211,1.002,601.27,601.09,0.33272887]
[1743401953415,1.002,601.27,601.1,0.28625512]
[1743401953616,1.002,601.27,601.11,0.3327178]
[1743401964427,1.002,601.27,601.12,0.28632685]
[1743401965428,1.213,601.42,601.12,0.28632685]
[1743401966023,1.213,601.42,601.13,0.33270673]
[1743401966328,1.213,601.42,601.14,0.28632685]
[1743401966527,1.213,601.42,601.15,0.33269566]
[1743401966730,1.213,601.42,601.16,0.28632685]
[1743401967231,1.213,601.42,601.17,0.33268459]
[1743401967431,1.213,601.42,601.18,0.28632685]
[1743401967633,1.213,601.42,601.18,0.61900591]
[1743401967832,1.213,601.42,601.19,0.28632685]
[1743401971237,1.213,601.42,601.2,0.33266799]
[1743401971430,1.213,601.42,601.21,0.28632685]
[1743401971729,1.213,601.42,601.21,0.61898931]
[1743401971934,1.213,601.42,601.22,0.28632685]
[1743401973630,1.213,601.42,601.21,0.33266246]
[1743401979837,1.213,601.42,599.5,2.52044129]
[1743401980034,1.213,601.42,599.52,0.33360021]
[1743401980239,1.213,601.42,600.93,0.28944764]
[1743401980439,1.213,601.42,599.53,0.28640795]
[1743401980741,1.213,601.42,599.55,0.33358352]
[1743401980943,1.213,601.42,599.56,0.28640925]
[1743401981138,1.213,601.42,599.58,0.33356683]
[1743401981339,1.213,601.42,599.59,0.28640925]
[1743401981544,1.213,601.42,599.6,0.28640925]
[1743401981837,1.213,601.42,599.61,0.28640925]
[1743401982043,1.213,601.42,599.62,0.28640925]
[1743401982343,1.213,601.42,599.63,0.28640925]
[1743401982642,1.213,601.42,599.64,0.28640925]
[1743401982839,1.213,601.42,599.65,0.28640925]
[1743401983143,1.213,601.42,599.91,2.52044129]
[1743401983342,1.213,601.42,599.92,0.28640925]
[1743401983543,1.213,601.42,599.91,2.52044129]
[1743401983743,1.213,601.42,599.92,0.28644817]
[1743401984042,1.213,601.42,599.91,2.52044129]
[1743401984043,1.213,601.42,599.93,0.28645263]
[1743401984343,1.213,601.42,599.95,0.33336111]
[1743401984540,1.213,601.42,599.97,2.52044129]
[1743401984742,1.213,601.42,599.99,0.33333888]
[1743401984942,1.213,601.42,600.0,0.28645263]
[1743401985145,1.213,601.42,600.02,0.33332222]
[1743401985345,1.213,601.42,600.03,0.28645263]
[1743401985545,1.213,601.42,600.05,0.33330555]
[1743401985947,1.213,601.42,600.06,0.28645351]
[1743401986146,1.213,601.42,600.07,0.28645351]
[1743401986346,1.213,601.42,600.08,0.6197424]
[1743401986647,1.213,601.42,600.1,0.33327778]
[1743401986849,1.251,601.41,600.11,0.28645351]
[1743401987045,1.251,601.41,600.13,0.33326112]
[1743401987249,1.185,601.4,600.14,0.28645351]
[1743401987448,1.185,601.4,600.16,0.33324446]
[1743401987644,1.185,601.4,600.17,0.28645351]
[1743401987846,1.185,601.4,600.19,0.33322781]
[1743401988044,1.185,601.4,600.2,0.28645351]
[1743401988246,1.185,601.4,600.22,0.33321115]
[1743401988443,1.185,601.4,600.23,0.28645351]
[1743401988749,1.185,601.4,600.22,0.33321115]
[1743401988750,1.185,601.4,600.24,0.28645351]
[1743401989048,1.185,601.4,600.25,0.61964801]
[1743401989244,1.185,601.4,600.26,0.28645351]
[1743401989447,1.185,601.4,600.28,0.33317785]
[1743401989648,1.185,601.4,600.29,0.28645351]
[1743401989848,1.185,601.4,600.31,0.3331612]
[1743401990052,1.185,601.4,600.32,0.28645351]
[1743401990248,1.185,601.4,600.34,0.33314455]
[1743401990447,1.185,601.4,600.35,0.28645351]
[1743401990752,1.185,601.4,600.36,0.28645351]
[1743401991052,1.185,601.4,600.38,0.33312235]
[1743401991251,1.185,601.4,600.39,0.28645351]
[1743401991447,1.185,601.4,600.41,0.33310571]
[1743401991651,1.185,601.4,600.42,0.28645351]
[1743401991852,1.185,601.4,600.44,0.33308906]
[1743401992049,1.185,601.4,600.45,0.28645351]
[1743401992250,1.185,601.4,600.46,0.28645351]
[1743401992451,1.185,601.4,600.47,0.28645351]
[1743401992751,1.185,601.4,600.48,0.28645351]
[1743401992952,1.185,601.4,600.5,0.33305578]
[1743401993151,1.185,601.4,600.51,0.28645351]
[1743401993452,1.185,601.4,600.18,0.28948857]
[1743401993453,1.185,601.4,600.53,0.33303914]
[1743401993751,1.185,601.4,600.54,0.28645351]
[1743401993947,1.185,601.4,600.56,0.33302251]
[1743401994146,1.185,601.4,600.57,0.28645351]
[1743401994345,0.941,601.39,600.58,0.28645351]
[1743401994547,0.941,601.39,600.59,0.28645351]
[1743401994847,0.941,601.39,600.6,0.61940514]
[1743401995150,0.941,601.39,600.61,0.28640481]
[1743401996753,0.941,601.39,600.62,0.33298924]
[1743401996948,0.941,601.39,600.63,0.28640481]
[1743401997154,0.941,601.39,600.64,0.33297815]
[1743401997352,0.941,601.39,600.65,0.28640481]